bitfinex/quotes_BTCUSD_20250830
["timestamp","ask_amount","ask_price","bid_price","bid_amount"]
[1756564430777,0.57539312,108800.0,108790.0,0.70569043]
[1756564433410,0.22975633,108800.0,108790.0,0.70569043]
[1756564433629,0.57540176,108800.0,108790.0,0.70569043]
[1756564438158,0.57440176,108800.0,108790.0,0.70569043]
[1756564439026,0.57440176,108800.0,108790.0,0.70669043]
[1756564440283,0.58379846,108800.0,108790.0,0.70669043]
[1756564440495,0.5838141,108800.0,108790.0,0.70669043]
[1756564440757,0.5744174,108800.0,108790.0,0.70669043]
[1756564441688,0.5744174,108800.0,108790.0,0.70665043]
[1756564442764,0.57441722,108800.0,108790.0,0.70665043]
[1756564443004,0.58351786,108800.0,108790.0,0.36632001]
[1756564443209,0.91190005,108800.0,108790.0,0.36308001]
[1756564443425,0.93563693,108800.0,108790.0,0.42454]
[1756564443836,0.93563693,108800.0,108790.0,0.2701]
[1756564444075,0.93563693,108800.0,108790.0,0.42454]
[1756564444815,0.93563693,108800.0,108790.0,0.2701]
[1756564445034,0.93563693,108800.0,108790.0,0.42454]
[1756564445245,1.70957868,108800.0,108790.0,0.2701]
[1756564445666,1.70957868,108800.0,108790.0,0.42454]
[1756564445886,1.70957868,108800.0,108790.0,0.2701]
[1756564446116,1.70957868,108800.0,108790.0,0.42454]
[1756564446346,1.62128236,108800.0,108790.0,0.42454]
[1756564446750,1.62128236,108800.0,108790.0,0.42354]
[1756564447375,1.62328236,108800.0,108790.0,0.42354]
[1756564447601,1.62528236,108800.0,108790.0,0.42354]
[1756564447945,1.62528236,108800.0,108790.0,0.2691]
[1756564448150,1.62528236,108800.0,108790.0,0.42354]
[1756564448369,1.62528236,108800.0,108790.0,0.2691]
[1756564448564,1.62528236,108800.0,108790.0,0.42354]
[1756564449005,1.63967051,108800.0,108790.0,0.42354]
[1756564449732,1.63967051,108800.0,108790.0,0.15444]
[1756564450392,0.52384042,108790.0,108780.0,0.07072]
[1756564450609,1.23886816,108790.0,108780.0,0.22516]
[1756564451248,1.26651116,108790.0,108780.0,0.22516]
[1756564451714,1.26751116,108790.0,108780.0,0.22516]
[1756564453317,1.26747519,108790.0,108780.0,0.22516]
[1756564453527,1.26746102,108790.0,108780.0,0.22516]
[1756564453750,1.26746102,108790.0,108780.0,0.2284]
[1756564454309,1.2674604,108790.0,108780.0,0.2284]
[1756564461235,1.2674604,108790.0,108780.0,0.23039]
[1756564464179,1.24377428,108790.0,108780.0,0.23039]
[1756564464369,1.26745481,108790.0,108780.0,0.23039]
[1756564465550,0.92180938,108790.0,108780.0,0.23039]
[1756564467938,1.26745481,108790.0,108780.0,0.23039]
[1756564468334,1.26745481,108790.0,108780.0,0.22516]
[1756564468922,1.26745481,108790.0,108780.0,0.22818]
[1756564471121,1.26099649,108790.0,108780.0,0.22818]
[1756564471337,1.26745946,108790.0,108780.0,0.22818]
[1756564471583,1.26745946,108790.0,108780.0,0.23017]
[1756564473134,1.28733105,108790.0,108780.0,0.23017]
[1756564473956,1.28733111,108790.0,108780.0,0.23017]
[1756564474792,1.28086814,108790.0,108780.0,0.23017]
[1756564475019,1.28737177,108790.0,108780.0,0.23017]
[1756564477095,1.3023645,108790.0,108780.0,0.07573]
[1756564477302,1.3023645,108790.0,108780.0,0.22516]
[1756564477496,1.28737177,108790.0,108780.0,0.22516]
[1756564477706,1.28737177,108790.0,108780.0,0.22818]
[1756564480778,1.28737177,108790.0,108780.0,0.23017]
[1756564485557,1.28090109,108790.0,108780.0,0.23017]
[1756564485758,1.28738752,108790.0,108780.0,0.23017]
[1756564486348,1.27012089,108790.0,108780.0,0.23017]
[1756564486580,1.28738744,108790.0,108780.0,0.23017]
[1756564488129,0.18385732,108780.0,108770.0,0.27212]
[1756564488337,1.58453512,108780.0,108770.0,0.4235]
[1756564488586,1.25878214,108780.0,108770.0,0.4235]
[1756564488825,1.28642614,108780.0,108770.0,0.4235]
[1756564489402,1.28642614,108780.0,108770.0,0.42767]
[1756564491684,1.37428371,108780.0,108770.0,0.42767]
[1756564491888,1.28642614,108780.0,108770.0,0.42767]
[1756564492636,1.28642183,108780.0,108770.0,0.15857]
[1756564492843,1.28642183,108780.0,108770.0,0.1554]
[1756564493524,1.28642183,108780.0,108770.0,0.15757]
[1756564493924,1.28742183,108780.0,108770.0,0.15757]
[1756564496154,1.2701533,108780.0,108770.0,0.15757]
[1756564496360,1.28740171,108780.0,108770.0,0.15757]
[1756564497196,1.28740135,108780.0,108770.0,0.15757]
[1756564498102,1.37569767,108780.0,108770.0,0.15757]
[1756564500562,1.28740135,108780.0,108770.0,0.15757]
[1756564500947,1.28739893,108780.0,108770.0,0.15757]
[1756564502227,1.280931,108780.0,108770.0,0.15757]
[1756564502376,1.28739824,108780.0,108770.0,0.15757]
[1756564505932,1.2873979,108780.0,108770.0,0.15757]
[1756564507549,0.52387423,108770.0,108760.0,0.34299]
[1756564507790,0.52387423,108770.0,108760.0,0.07072]
[1756564507791,1.23887836,108770.0,108760.0,0.07072]
[1756564508004,1.23887836,108770.0,108760.0,0.22829]
[1756564508202,1.28639602,108770.0,108760.0,0.22829]
[1756564508864,1.28639602,108770.0,108760.0,0.23031]
[1756564509294,1.37469234,108770.0,108760.0,0.23031]
[1756564509500,1.37468933,108770.0,108760.0,0.23031]
[1756564509712,1.37468933,108770.0,108760.0,0.23131]
[1756564512199,1.28639301,108770.0,108760.0,0.23131]
[1756564514099,0.94074758,108770.0,108760.0,0.23131]
[1756564514346,0.57523249,108770.0,108760.0,0.23131]
[1756564514547,0.92087792,108770.0,108760.0,0.23131]
[1756564516434,0.89716766,108770.0,108760.0,0.23131]
[1756564516642,0.92087523,108770.0,108760.0,0.23131]
[1756564527203,0.89716766,108770.0,108760.0,0.23131]
[1756564527408,0.92088791,108770.0,108760.0,0.23131]
[1756564529055,0.57524248,108770.0,108760.0,0.32429001]
[1756564529278,0.56877332,108770.0,108760.0,0.50818114]
[1756564529742,0.57441875,108770.0,108760.0,0.50818114]
[1756564529971,0.04489909,108770.0,108760.0,1.12292657]
[1756564530172,0.04489909,108770.0,108760.0,0.77728114]
[1756564530381,0.04489909,108770.0,108760.0,1.12292657]
[1756564530906,0.04489909,108770.0,108760.0,1.37292657]
[1756564531773,0.04489909,108770.0,108760.0,0.87288114]
[1756564532034,0.04489168,108770.0,108760.0,1.37288657]
[1756564533316,0.027648,108770.0,108760.0,1.37288657]
[1756564535853,0.52950275,108780.0,108760.0,1.37288657]
[1756564536075,0.57437887,108780.0,108770.0,0.09822843]
[1756564536408,0.57437887,108780.0,108770.0,0.10035843]
[1756564536638,0.04487612,108780.0,108770.0,0.28423266]
[1756564536844,0.19303244,108790.0,108770.0,0.62757967]
[1756564537050,0.86951595,108790.0,108780.0,0.22504]
[1756564537259,0.86951595,108790.0,108780.0,0.32097001]
[1756564537465,0.86951595,108790.0,108780.0,0.32310001]
[1756564537872,0.87870797,108790.0,108780.0,0.32310001]
[1756564538510,0.87870797,108790.0,108780.0,0.32210001]
[1756564538840,0.53306254,108790.0,108780.0,0.50595733]
[1756564539045,0.53506254,108790.0,108780.0,0.85160276]
[1756564539870,0.53306254,108790.0,108780.0,0.85160276]
[1756564540098,0.53406254,108790.0,108780.0,0.85160276]
[1756564541716,0.53406254,108790.0,108780.0,1.12070276]
[1756564542132,0.53406254,108790.0,108780.0,0.93684544]
[1756564543986,0.53406254,108790.0,108780.0,0.59120001]
[1756564544192,0.87970797,108790.0,108780.0,0.59120001]
[1756564549041,0.89691931,108790.0,108780.0,0.59120001]
[1756564550993,0.55127388,108790.0,108780.0,0.59120001]
[1756564551124,0.89691931,108790.0,108780.0,0.43688001]
[1756564551325,0.89691931,108790.0,108780.0,0.59116001]
[1756564553181,0.89691931,108790.0,108780.0,0.77501733]
[1756564554220,0.89691931,108790.0,108780.0,0.59116001]
[1756564556233,0.89693134,108790.0,108780.0,0.59116001]
[1756564556778,0.01822337,108790.0,108780.0,0.77501733]
[1756564556989,0.001,108790.0,108780.0,1.12066276]
[1756564557193,0.001,108790.0,108780.0,1.14829976]
[1756564557402,0.001,108790.0,108780.0,0.80265433]
[1756564558014,0.52946896,108800.0,108790.0,0.18384042]
[1756564558226,0.54669744,108800.0,108790.0,0.54912043]
[1756564558474,0.54669744,108800.0,108790.0,0.55115043]
[1756564559301,0.54670547,108800.0,108790.0,0.55115043]
[1756564559716,0.8923509,108800.0,108790.0,0.55115043]
[1756564559910,0.20106004,108800.0,108790.0,0.55115043]
[1756564560111,0.54670547,108800.0,108790.0,0.55115043]
[1756564560334,0.01723651,108800.0,108790.0,0.55115043]
[1756564560538,0.49778744,108820.0,108800.0,0.18382352]
[1756564560539,0.84343287,108820.0,108800.0,0.18382352]
[1756564560706,0.34564543,108810.0,108800.0,0.34752353]
[1756564560921,0.36288006,108810.0,108800.0,0.50180353]
[1756564561123,0.36288006,108810.0,108800.0,0.50383353]
[1756564561323,0.54653884,108810.0,108800.0,0.50703353]
[1756564562529,0.20104126,108810.0,108800.0,0.50703353]
[1756564562711,0.54653884,108810.0,108800.0,0.50703353]
[1756564564839,0.54653884,108810.0,108800.0,0.32321001]
[1756564565330,0.54653884,108810.0,108800.0,0.50703353]
[1756564565482,0.54653884,108810.0,108800.0,0.77613353]
[1756564566613,0.20104126,108810.0,108800.0,0.77613353]
[1756564566835,0.54653884,108810.0,108800.0,0.77613353]
[1756564568670,0.52930421,108810.0,108800.0,0.77613353]
[1756564568852,0.54652401,108810.0,108800.0,0.77613353]
[1756564569237,0.52930421,108810.0,108800.0,0.77613353]
[1756564569444,0.54652401,108810.0,108800.0,0.77613353]
[1756564569650,0.54652401,108810.0,108800.0,0.43803001]
[1756564569868,0.54652401,108810.0,108800.0,0.59327001]
[1756564571794,0.54652401,108810.0,108800.0,0.77709353]
[1756564575973,0.54652124,108810.0,108800.0,0.77709353]
[1756564578089,0.54652124,108810.0,108800.0,0.59327001]
[1756564579420,0.52930421,108810.0,108800.0,0.59327001]
[1756564579718,0.54652509,108810.0,108800.0,0.59327001]
[1756564580097,0.54652546,108810.0,108800.0,0.59327001]
[1756564581437,0.54656273,108810.0,108800.0,0.59327001]
[1756564582238,0.54656273,108810.0,108800.0,0.77709353]
[1756564584863,0.54656273,108810.0,108800.0,0.59327001]
[1756564585473,0.20102788,108810.0,108800.0,0.59327001]
[1756564585679,0.54656273,108810.0,108800.0,0.59327001]
[1756564586032,0.54656273,108810.0,108800.0,0.43903001]
[1756564586239,0.54656273,108810.0,108800.0,0.59327001]
[1756564589219,0.54656273,108810.0,108800.0,0.43903001]
[1756564589507,0.55303638,108810.0,108800.0,0.59327001]
[1756564590170,0.52934148,108810.0,108800.0,0.59327001]
[1756564590375,0.55307821,108810.0,108800.0,0.59327001]
[1756564590755,0.55307813,108810.0,108800.0,0.59327001]
[1756564591487,0.20754328,108810.0,108800.0,0.59327001]
[1756564591737,0.55307813,108810.0,108800.0,0.59327001]
[1756564594837,0.55307813,108810.0,108800.0,0.43903001]
[1756564595060,0.9869093,108810.0,108800.0,0.34082]
[1756564595286,0.9869093,108810.0,108800.0,0.49506]
[1756564595735,0.89861298,108810.0,108800.0,0.49506]
[1756564596603,1.23861298,108810.0,108800.0,0.33982]
[1756564596846,1.23861298,108810.0,108800.0,0.49406]
[1756564597194,1.23861114,108810.0,108800.0,0.49406]
[1756564598016,1.23861114,108810.0,108800.0,0.2691]
[1756564598230,1.23861114,108810.0,108800.0,0.42334]
[1756564598453,1.35454646,108810.0,108800.0,0.42334]
[1756564599559,1.37441516,108810.0,108800.0,0.42334]
[1756564600860,1.35715214,108810.0,108800.0,0.42334]
[1756564601042,1.3743902,108810.0,108800.0,0.42334]
[1756564601266,1.3743902,108810.0,108800.0,0.15424]
[1756564601500,1.37467006,108810.0,108800.0,0.15424]
[1756564601726,0.52382352,108800.0,108790.0,0.27234]
[1756564601937,0.52382352,108800.0,108790.0,0.2691]
[1756564601938,0.89320809,108800.0,108790.0,0.2691]
[1756564602152,0.91307095,108800.0,108790.0,0.2691]
[1756564602365,0.90469795,108800.0,108790.0,0.42334]
[1756564602826,0.93233995,108800.0,108790.0,0.42334]
[1756564603052,0.93233995,108800.0,108790.0,0.42434]
[1756564603691,0.93433995,108800.0,108790.0,0.42434]
[1756564604960,1.28001479,108800.0,108790.0,0.42434]
[1756564605172,0.93433995,108800.0,108790.0,0.2701]
[1756564605377,0.93433995,108800.0,108790.0,0.42434]
[1756564605765,0.93533995,108800.0,108790.0,0.42434]
[1756564607089,0.93533995,108800.0,108790.0,0.15524]
[1756564607840,0.92887375,108800.0,108790.0,0.15524]
[1756564608079,0.93533038,108800.0,108790.0,0.15524]
[1756564608486,1.31693199,108800.0,108790.0,0.001]
[1756564608694,0.97125715,108800.0,108790.0,0.15524]
[1756564611486,0.97122131,108800.0,108790.0,0.15524]
[1756564611718,0.93529454,108800.0,108790.0,0.15524]
[1756564612346,0.93529322,108800.0,108790.0,0.15825]
[1756564615988,0.93529322,108800.0,108790.0,0.001]
[1756564616185,0.93529322,108800.0,108790.0,0.15524]
[1756564618059,0.93529322,108800.0,108790.0,0.15825]
[1756564619178,0.93529322,108800.0,108790.0,0.16031]
[1756564619790,1.02358954,108800.0,108790.0,0.16031]
[1756564620017,1.02358954,108800.0,108790.0,0.15825]
[1756564621418,1.00638197,108800.0,108790.0,0.15825]
[1756564621629,1.02359646,108800.0,108790.0,0.15825]
[1756564622325,1.02359684,108800.0,108790.0,0.15825]
[1756564623195,1.02359684,108800.0,108790.0,0.15524]
[1756564623403,1.71518424,108800.0,108790.0,0.15825]
[1756564624556,1.71519671,108800.0,108790.0,0.15825]
[1756564630334,1.71519671,108800.0,108790.0,0.001]
[1756564630553,1.89427627,108800.0,108790.0,0.15524]
[1756564630768,1.89427627,108800.0,108790.0,0.001]
[1756564630769,2.25441792,108800.0,108790.0,0.001]
[1756564630976,6.82036752,108800.0,108790.0,0.001]
[1756564631623,6.83627132,108800.0,108790.0,0.001]
[1756564631832,6.85352774,108800.0,108790.0,0.001]
[1756564631986,7.03040312,108800.0,108790.0,0.001]
[1756564632198,7.32737369,108800.0,108790.0,0.001]
[1756564632603,7.32738683,108800.0,108790.0,0.001]
[1756564634476,8.03983381,108800.0,108790.0,1e-08]
[1756564634703,8.03372665,108800.0,108790.0,1e-08]
[1756564635112,8.07528565,108800.0,108790.0,1e-08]
[1756564635546,0.52385732,108780.0,108770.0,0.42334]
[1756564635757,1.75894741,108780.0,108770.0,0.27464721]
[1756564636162,1.78659641,108780.0,108770.0,0.27464721]
[1756564636393,1.67808416,108780.0,108770.0,0.27464721]
[1756564636601,1.63235641,108780.0,108770.0,0.27464721]
[1756564636795,1.63235716,108780.0,108770.0,0.00554721]
[1756564637602,1.78659716,108780.0,108770.0,0.00554721]
[1756564637860,1.63235716,108780.0,108770.0,0.00554721]
[1756564638105,1.88928369,108780.0,108770.0,0.00554721]
[1756564638737,1.88928369,108780.0,108770.0,0.00348721]
[1756564639398,1.73504369,108780.0,108770.0,0.00348721]
[1756564639603,1.88928369,108780.0,108770.0,0.00348721]
[1756564640033,1.89028369,108780.0,108770.0,0.00348721]
[1756564640246,1.89228369,108780.0,108770.0,0.00348721]
[1756564642145,1.87502915,108780.0,108770.0,0.00348721]
[1756564642382,1.89224779,108780.0,108770.0,0.00348721]
[1756564642763,1.89224586,108780.0,108770.0,0.00348721]
[1756564643980,1.89224586,108780.0,108770.0,0.00549721]
[1756564645979,1.37786157,108780.0,108770.0,0.00549721]
[1756564646177,1.28956525,108780.0,108770.0,0.00549721]
[1756564648044,1.44384525,108780.0,108770.0,0.00549721]
[1756564648498,6.44384525,108780.0,108770.0,0.00549721]
[1756564648906,6.78959933,108780.0,108770.0,0.00549721]
[1756564651347,6.82861803,108780.0,108770.0,0.00047721]
[1756564652026,6.82861803,108780.0,108770.0,0.00366721]
[1756564652239,6.78959933,108780.0,108770.0,0.00366721]
[1756564653072,6.78959599,108780.0,108770.0,0.00366721]
[1756564655504,6.78959599,108780.0,108770.0,0.00567721]
[1756564656132,6.78959599,108780.0,108770.0,0.00047721]
[1756564656327,0.52387423,108770.0,108760.0,0.00319]
[1756564656531,6.25892982,108770.0,108760.0,0.00319]
[1756564656763,1.41320982,108770.0,108760.0,0.00319]
[1756564656929,0.59507266,108770.0,108760.0,0.0052]
[1756564657194,1.28658082,108770.0,108760.0,0.0052]
[1756564657606,1.28858082,108770.0,108760.0,0.0052]
[1756564657943,1.29058082,108770.0,108760.0,0.0052]
[1756564658147,1.28858082,108770.0,108760.0,0.0052]
[1756564658462,1.37687714,108770.0,108760.0,0.0052]
[1756564659074,1.53119714,108770.0,108760.0,0.0052]
[1756564659900,0.18389113,108760.0,108750.0,3.26786166]
[1756564660033,0.91894672,108760.0,108750.0,3.11559166]
[1756564660246,0.98050527,108760.0,108750.0,3.11559166]
[1756564660467,0.98050527,108760.0,108750.0,3.26987166]
[1756564660676,1.00815727,108760.0,108750.0,3.26987166]
[1756564661224,1.01726608,108760.0,108750.0,3.11659166]
[1756564661425,1.01726608,108760.0,108750.0,3.27087166]
[1756564661879,0.95570753,108760.0,108750.0,3.27087166]
[1756564662301,1.30146161,108760.0,108750.0,3.27087166]
[1756564663473,1.30149204,108760.0,108750.0,3.27087166]
[1756564664252,0.95573796,108760.0,108750.0,3.27087166]
[1756564664478,0.95573647,108760.0,108750.0,3.27087166]
[1756564666186,0.26422831,108760.0,108750.0,3.27087166]
[1756564666399,0.95573647,108760.0,108750.0,3.27087166]
[1756564667100,0.9557354,108760.0,108750.0,3.27087166]
[1756564667535,0.26422724,108760.0,108750.0,3.27087166]
[1756564667748,0.9557354,108760.0,108750.0,3.27087166]
[1756564667970,0.94998132,108760.0,108750.0,3.27087166]
[1756564669145,0.58436363,108760.0,108750.0,3.27087166]
[1756564669362,0.93011771,108760.0,108750.0,3.27087166]
[1756564670282,0.93011641,108760.0,108750.0,3.27087166]
[1756564670504,0.23789611,108760.0,108750.0,3.36385167]
[1756564671174,0.58365019,108760.0,108750.0,3.36385167]
[1756564671399,0.23789611,108760.0,108750.0,3.36385167]
[1756564672522,0.23789611,108760.0,108750.0,3.63295167]
[1756564672906,0.23789611,108760.0,108750.0,3.81685971]
[1756564674070,0.22065194,108760.0,108750.0,3.81685971]
[1756564674319,0.04489242,108760.0,108750.0,3.81685971]
[1756564674781,0.18387423,108770.0,108750.0,3.81685971]
[1756564675014,0.20111259,108770.0,108760.0,0.07301863]
[1756564675231,0.20111259,108770.0,108760.0,0.07805863]
[1756564675674,0.22875959,108770.0,108760.0,0.07805863]
[1756564676654,0.22875959,108770.0,108760.0,0.07576]
[1756564676870,0.22875959,108770.0,108760.0,0.07805863]
[1756564677763,0.22975959,108770.0,108760.0,0.07805863]
[1756564677978,0.23075959,108770.0,108760.0,0.07805863]
[1756564678184,0.04612544,108770.0,108760.0,0.07805863]
[1756564678422,0.22999967,108770.0,108760.0,0.34715863]
[1756564678644,0.23931612,108770.0,108760.0,0.34486]
[1756564681155,0.23931612,108770.0,108760.0,0.62173114]
[1756564681156,0.04612544,108770.0,108760.0,0.62173114]
[1756564681367,0.002,108770.0,108760.0,0.96753429]
[1756564681808,0.002,108770.0,108760.0,0.62173114]
[1756564682250,0.002,108770.0,108760.0,0.96753429]
[1756564682465,0.001,108770.0,108760.0,0.66314385]
[1756564682855,0.001,108770.0,108760.0,0.66414385]
[1756564683060,0.001,108770.0,108760.0,0.91414385]
[1756564683274,0.001,108770.0,108760.0,1.258947]
[1756564683487,0.001,108770.0,108760.0,1.21753429]
[1756564683894,0.21150132,108780.0,108770.0,0.18387423]
[1756564684131,0.21150132,108780.0,108770.0,0.43709424]
[1756564684341,0.21150132,108780.0,108770.0,0.70619424]
[1756564685443,0.21150132,108780.0,108770.0,0.52232001]
[1756564685807,0.21150132,108780.0,108770.0,0.70619424]
[1756564686026,0.027644,108780.0,108770.0,0.70619424]
[1756564686439,0.027644,108780.0,108770.0,0.70719424]
[1756564687209,0.027644,108780.0,108770.0,0.70819424]
[1756564689066,0.027644,108780.0,108770.0,0.95819424]
[1756564689756,0.21150132,108780.0,108770.0,0.95819424]
[1756564691604,0.027644,108780.0,108770.0,0.95819424]
[1756564696767,0.027644,108780.0,108770.0,1.30385591]
[1756564696961,0.027644,108780.0,108770.0,0.95819424]
[1756564697385,0.027644,108780.0,108770.0,1.30385591]
[1756564700351,0.04486202,108780.0,108770.0,1.30385591]
[1756564701134,0.027644,108780.0,108770.0,1.30385591]
[1756564701398,0.0448619,108780.0,108770.0,1.30385591]
[1756564702196,0.0448619,108780.0,108770.0,0.95819424]
[1756564704766,0.04487577,108780.0,108770.0,0.95819424]
[1756564709171,0.04487577,108780.0,108770.0,0.95775424]
[1756564713140,0.04487577,108780.0,108770.0,0.80299424]
[1756564713349,0.04487577,108780.0,108770.0,1.30337591]
[1756564713764,0.04487577,108780.0,108770.0,0.95771424]
[1756564715318,0.027644,108780.0,108770.0,0.95771424]
[1756564715532,0.04490329,108780.0,108770.0,0.95771424]
[1756564716359,0.04490329,108780.0,108770.0,0.80299424]
[1756564716560,0.04490329,108780.0,108770.0,0.95767424]
[1756564718391,0.22876061,108780.0,108770.0,0.80299424]
[1756564718613,0.22876061,108780.0,108770.0,0.95767424]
[1756564719936,0.22876061,108780.0,108770.0,0.95763424]
[1756564721444,0.04490329,108780.0,108770.0,0.95763424]
[1756564723200,0.04490329,108780.0,108770.0,1.30329591]
[1756564723874,0.04490329,108780.0,108770.0,1.14865591]
[1756564724074,0.22876061,108780.0,108770.0,1.30321591]
[1756564726074,0.22876671,108780.0,108770.0,1.30321591]
[1756564727199,0.04490939,108780.0,108770.0,1.30321591]
[1756564728169,0.22876671,108780.0,108770.0,1.30321591]
[1756564731681,0.22876671,108780.0,108770.0,1.30305591]
[1756564731879,0.22876671,108780.0,108770.0,0.95739424]
[1756564732286,0.57442838,108780.0,108770.0,0.95739424]
[1756564732802,0.57442838,108780.0,108770.0,0.80299424]
[1756564733007,0.55716299,108780.0,108770.0,0.95735424]
[1756564733322,0.5467843,108780.0,108770.0,0.95735424]
[1756564736705,0.54678409,108780.0,108770.0,0.95735424]
[1756564737528,0.54678399,108780.0,108770.0,0.95735424]
[1756564738877,0.20112232,108780.0,108770.0,1.30301591]
[1756564740547,0.54678399,108780.0,108770.0,0.95735424]
[1756564741484,0.54098861,108780.0,108770.0,0.95735424]
[1756564741707,0.19532694,108780.0,108770.0,0.95735424]
[1756564741924,0.19532694,108780.0,108770.0,1.30301591]
[1756564742189,0.22296794,108780.0,108770.0,1.30301591]
[1756564742852,0.56862961,108780.0,108770.0,0.95735424]
[1756564744618,0.22296794,108780.0,108770.0,0.95735424]
[1756564746209,0.21149832,108780.0,108770.0,1.30301591]
[1756564746444,0.027641,108780.0,108770.0,1.30301591]
[1756564747107,0.53870868,108790.0,108780.0,0.18385732]
[1756564747324,0.54518286,108790.0,108780.0,0.50721733]
[1756564747544,0.57282386,108790.0,108780.0,0.50721733]
[1756564748706,0.57382386,108790.0,108780.0,0.50721733]
[1756564749629,0.57382386,108790.0,108780.0,0.77631733]
[1756564750078,0.028641,108790.0,108780.0,1.121979]
[1756564751182,0.027641,108790.0,108780.0,1.121979]
[1756564751405,0.027641,108790.0,108780.0,1.122979]
[1756564751406,0.21148142,108790.0,108780.0,1.122979]
[1756564751641,0.21148142,108790.0,108780.0,0.77731733]
[1756564752042,0.21148142,108790.0,108780.0,1.02831733]
[1756564753392,0.22873909,108790.0,108780.0,1.02831733]
[1756564756676,0.21148142,108790.0,108780.0,1.02831733]
[1756564756892,0.22873626,108790.0,108780.0,1.02831733]
[1756564758059,0.22873626,108790.0,108780.0,21.02831733]
[1756564759835,0.57439793,108790.0,108780.0,21.02831733]
[1756564760042,0.39055751,108790.0,108780.0,21.02831733]
[1756564760510,0.57439793,108790.0,108780.0,21.02831733]
[1756564761057,0.39055751,108790.0,108780.0,21.02831733]
[1756564763163,0.57439793,108790.0,108780.0,21.02831733]
[1756564764694,0.39055751,108790.0,108780.0,21.02831733]
[1756564767520,0.39055527,108790.0,108780.0,21.02831733]
[1756564767935,0.57439569,108790.0,108780.0,21.02819733]
[1756564768947,0.39055527,108790.0,108780.0,21.02819733]
[1756564770964,0.0448936,108790.0,108780.0,21.02819733]
[1756564771190,0.39055531,108790.0,108780.0,21.02819733]
[1756564773249,0.04489364,108790.0,108780.0,21.02819733]
[1756564773553,0.027641,108790.0,108780.0,21.373859]
[1756564773757,0.027641,108790.0,108780.0,21.02819733]
[1756564773958,0.37330267,108790.0,108780.0,21.02819733]
[1756564774126,0.37330267,108790.0,108780.0,21.03725086]
[1756564775214,0.37330267,108790.0,108780.0,21.02819733]
[1756564775417,0.34566167,108790.0,108780.0,21.02819733]
[1756564775821,0.027638,108800.0,108790.0,0.18384042]
[1756564775994,0.04489004,108800.0,108790.0,0.70571043]
[1756564776194,0.39055171,108800.0,108790.0,0.70571043]
[1756564777002,0.39102859,108800.0,108790.0,0.70571043]
[1756564777616,0.39202859,108800.0,108790.0,0.70571043]
[1756564778017,0.04636692,108800.0,108790.0,0.70571043]
[1756564778220,0.39202859,108800.0,108790.0,0.70571043]
[1756564778424,0.39202829,108800.0,108790.0,0.70571043]
[1756564779619,0.73768996,108800.0,108790.0,0.70571043]
[1756564780122,0.73668996,108800.0,108790.0,0.70571043]
[1756564780272,0.73668996,108800.0,108790.0,0.70671043]
[1756564780750,0.73668996,108800.0,108790.0,0.70771043]
[1756564781344,0.39102829,108800.0,108790.0,0.70771043]
[1756564781742,0.73668996,108800.0,108790.0,0.70771043]
[1756564782912,0.04536662,108800.0,108790.0,0.70771043]
[1756564783122,0.73668996,108800.0,108790.0,0.70771043]
[1756564784002,0.57485181,108800.0,108790.0,0.55323043]
[1756564784217,0.92051348,108800.0,108790.0,0.70787043]
[1756564784622,0.92051348,108800.0,108790.0,0.52403001]
[1756564785031,0.92051348,108800.0,108790.0,0.70787043]
[1756564785264,0.90326174,108800.0,108790.0,0.70787043]
[1756564785475,0.92051006,108800.0,108790.0,0.70787043]
[1756564786069,0.22918672,108800.0,108790.0,0.70787043]
[1756564786271,0.57484839,108800.0,108790.0,0.70787043]
[1756564789007,0.57484819,108800.0,108790.0,0.70787043]
[1756564789468,0.57484842,108800.0,108790.0,0.70787043]
[1756564790014,0.57484842,108800.0,108790.0,0.70741708]
[1756564793174,0.92051009,108800.0,108790.0,0.70741708]
[1756564794795,0.22918675,108800.0,108790.0,0.70741708]
[1756564795001,0.57484842,108800.0,108790.0,0.70741708]
[1756564798353,1.26617176,108800.0,108790.0,0.1564]
[1756564798584,0.92698127,108800.0,108790.0,0.002]
[1756564798802,0.92698127,108800.0,108790.0,0.15636]
[1756564799674,0.9269896,108800.0,108790.0,0.15636]
[1756564801828,0.90973297,108800.0,108790.0,0.15636]
[1756564802035,0.92698904,108800.0,108790.0,0.15931]
[1756564805182,0.92698904,108800.0,108790.0,0.16136]
[1756564805386,0.92698516,108800.0,108790.0,0.163658]
[1756564805857,0.92698516,108800.0,108790.0,0.34749842]
[1756564806007,0.92051514,108800.0,108790.0,0.34520042]
[1756564806646,0.92698493,108800.0,108790.0,0.34520042]
[1756564807223,0.92051514,108800.0,108790.0,0.34520042]
[1756564808007,0.2291918,108800.0,108790.0,0.19084042]
[1756564808239,0.92051514,108800.0,108790.0,0.34520042]
[1756564808766,0.92051514,108800.0,108790.0,0.61384707]
[1756564808982,0.90326174,108800.0,108790.0,0.61384707]
[1756564809185,0.92051438,108800.0,108790.0,0.61384707]
[1756564809622,0.92051438,108800.0,108790.0,0.45948707]
[1756564809829,0.92051438,108800.0,108790.0,0.61384707]
[1756564810960,0.92051438,108800.0,108790.0,0.65547616]
[1756564811669,0.92051438,108800.0,108790.0,0.47163574]
[1756564812590,0.04536765,108800.0,108790.0,0.74845617]
[1756564812779,0.39102932,108800.0,108790.0,0.74845617]
[1756564813742,0.73669099,108800.0,108790.0,0.74845617]
[1756564814923,0.04536765,108800.0,108790.0,0.74845617]
[1756564815123,0.39102737,108800.0,108790.0,0.74845617]
[1756564815370,0.37377655,108800.0,108790.0,0.74845617]
[1756564816050,0.37377655,108800.0,108790.0,0.99845617]
[1756564817700,0.00047688,108800.0,108790.0,1.34411784]
[1756564818884,0.00047688,108800.0,108790.0,0.99845617]
[1756564819344,0.00047688,108800.0,108790.0,0.99745617]
[1756564819793,0.00047688,108800.0,108790.0,0.99645617]
[1756564820586,0.00047688,108800.0,108790.0,1.00145617]
[1756564822410,0.19956086,108810.0,108800.0,0.18382352]
[1756564822611,0.21679482,108810.0,108800.0,0.50713353]
[1756564823638,0.21679482,108810.0,108800.0,0.77578018]
[1756564823854,0.19956086,108810.0,108800.0,0.77878018]
[1756564824073,0.21679295,108810.0,108800.0,0.77878018]
[1756564824288,0.19956086,108810.0,108800.0,0.77878018]
[1756564824976,0.19956086,108810.0,108800.0,1.02878018]
[1756564826799,0.38336749,108810.0,108800.0,0.87442018]
[1756564827010,0.4005951,108810.0,108800.0,0.83970666]
[1756564827214,0.54669591,108810.0,108800.0,1.02674018]
[1756564827637,0.54669591,108810.0,108800.0,0.84291666]
[1756564828061,0.54669591,108810.0,108800.0,0.68855666]
[1756564828270,0.54669591,108810.0,108800.0,0.84291666]
[1756564828475,0.54669591,108810.0,108800.0,0.84495666]
[1756564828683,0.54669591,108810.0,108800.0,1.02878018]
[1756564829095,0.54669591,108810.0,108800.0,0.84495666]